{"text_format":"1","workbook":"xlsx","n_sheets":20,"sheets":["DV 2024","Afgánský chrt","Azavak","Barzoj","Greyhound","Italský chrtík","saluki","sloughi","Španělský galgo","whippet","basenji","Faraonský pes","Ibizský podenco","Kanárský podenco","sicilský chrt","dlouhosrstý vipet","Deerhound","Irský vlkodav","Polský chrt","Maďarský chrt"],"not_rendered":{"charts":0,"images":0,"macros":0,"external_links":0,"defined_names":0,"comments":0,"pivot_tables":0},"unopened":[],"bounds":{"document_bytes":16777216,"sheet_cells":100000,"rows_first":2000,"rows_last":500,"rows_between":2000,"halvings":0,"cell_chars":16384,"cell_head_chars":4096},"cells_cut":0,"cells_raw":0,"read":"whole","date_system":"1900"}

{"sheet":"DV 2024","index":0,"n_rows":33,"n_cols":11,"rows_kept":33,"cut":false,"hidden":false,"merged":[[0,0,0,10],[1,0,1,10],[2,0,3,0],[2,2,2,4],[2,5,2,7],[17,0,19,0],[20,0,23,0],[24,0,26,0],[29,0,32,0],[2,8,2,10],[7,0,9,0],[4,0,5,0],[12,0,13,0],[14,0,16,0],[22,1,23,1]]}
["DOSTIHOVÝ VÍTĚZ 2024"]
["Dostihová a coursingová komise vyhlašuje pořadí na prvních třech místech v jednotlivých kategoriích v soutěži Dostihový vítěz roku 2024. Majitelé vítězů budou pozváni na slavnostní vyhlášení e-mailem."]
["PLEMENO",null,"1. MÍSTO",null,null,"2. MÍSTO",null,null,"3. MÍSTO"]
[null,"KATEGORIE","PES / FENA","BODY","MAJITEL","PES / FENA","BODY","MAJITEL","PES / FENA","BODY","MAJITEL"]
["AFGÁNSKÝ CHRT","PES","Rituál ze Zličínských Luk",20,"Pavlína Eliášová","Eyken z Allahovy země",11,"Svatava Ptáčková"]
[null,"FENA","Elara  Maalum Uzuri",9,"Martina Kubínová"]
["GREYHOUND","PES","Chanson Jumping Jet",7,"Bohuslav Schejbal"]
["ITALSKÝ CHRTÍK ","PES","Jeans Feritte Bugsy",45,"Gabriela Palánová","Asher Adisiah",18,"Vendulka Musilová","Udo Next Level",18,"Dana Ryvolová"]
[null,"FENA","Chicky Feritte Bugsy",46,"Eva Baxová ","Nataly Feritte Bugsy",36,"Eva Baxová ","Víla Feritte Bugsy",35,"Šárka Buřičová"]
[null,"PES SENIOR","Zippo Libre na Klínkách",7,"Kateřina Ramešová "]
[null,"FENA SENIOR","Anabella Fragoletta",12,"Michaela Plačková"]
["SALUKI","FENA","Acadia Tawala",16,"Štěpán Andziol"]
["SLOUGHI","PES","del Khazaris Karel ag Dalvit",9,"Lenka Kubová"]
[null,"FENA","Alzena Bella la Rossa",13,"Ilona Wieznerová"]
["ŠPANĚLSKÝ GALGO","PES","Beastie Boy Rabbit's nightmare",14,"Dagmar Keberlová "]
[null,"FENA ","Ballerina Rabbit's nightmare",11,"Richterovi"]
[null,"PES SENIOR","Archer Rabbit´s nightmare",7,"Richterovi"]
["WHIPPET","PES","Apollon Bon Esprit",68,"Jana Lacinová","Harley Blue North",60,"Radka Macháčková","Aaron Bon Esprit",51,"Petr Šlechta"]
[null,"FENA","Buggy Buggy Welcoming Dog",66,"Denisa Metelková","Dare To Dream Fancy That",43,"Martin Skoumal","Ayleen Bon Esprit",42,"Kaplanovi"]
[null,"PES SENIOR","Excalibur Jitka-Miki",15,"Petr Šlechta"]
["BASENJI","PES","Garry Prince of Mabanga",24,"Jaroslav Mizera ","On The Dark Side Bahaticca´s",21,"Jaroslav Mizera","Flow Anulinka",18,"Petra Frydrychová"]
[null,"FENA ","Aira Star My Beautiful Savage",20,"Daniela Knápek","Ghini Mabanga",11,"Lucie Popelková"]
[null,"FENA SENIOR","Dibi Mabanga",6,"Lucie Popelková "]
[null,null,"Hakika Sewu Asthenia",6,"Markéta Čechurová"]
["FARAONSKÝ PES","PES","Amadeus Ginger Dwarf",19,"Jana Fohlová ","Osiris Next Level Superman XO",16,"Jana Halenková","Archimedes Ginger Dwarf",7,"Szczerkowska"]
[null,"FENA","Alexandra Ginger Dwarf     ",24,"Jana Fohlová "]
[null,"FENA SENIOR","Cantara Anat Wai-Wad",11,"Jana Fohlová"]
["IBIZSKÝ PODENCO","PES","Fenix de Entersaltos",15,"Jana Halenková","Gallardo de Entersaltos",12,"Jana Halenková","Eryx de Entersaltos",6,"Jana Halenková"]
["SICILSKÝ CHRT","FENA SENIOR","Bía Balor Wai-Wad",10,"Jitka Kutiová "]
["DLOUHOSRSTÝ VIPET","PES","Cypress Absolute Original",20,"Tamara Skřivánková ","Quartz Beami Sahrak",11,"Tamara Skřivánková "]
[null,null,null,null,null,"Gump Verona Sunrise",11,"Richard Horváth"]
[null,"SENIOR PES","Falco Verona Sunrise",6,"Richard Horváth"]
[null,"SENIOR FENA","Afalda Princess of Andromeda",11,"Martina Uhrová"]

{"sheet":"Afgánský chrt","index":1,"n_rows":15,"n_cols":18,"rows_kept":15,"cut":false,"hidden":false,"merged":[[0,15,2,15],[0,16,2,16],[0,17,2,17]]}
[null,null,null,"23.3.","13.4.","1.5.","11.5.","30.6.","7.7.","14.7.","3.8.","18.8.","14.9./26.10.","5.10.","12.10.","součet","body započítávané do soutěže","počet závodů"]
["AFGÁNSKÝ CHRT",null,null,"Kolín","Lednice","Lednice","Kolín","Lednice","Lednice","Kolín","Kolín","Lednice","Kolín","Kolín","Lednice"]
["jméno psa","země","majitel",1,2,3,4,5,6,7,8,9,10,11,12]
["FENA"]
["Elara Maalum Uzuri","CZ","Kubínová",null,null,null,null,null,2,2,1,1,2,1,null,{"$f":"SUM(D5:O5)","v":9},9,{"$f":"COUNT(D5:O5)","v":6}]
["Agnes Kvítek z Chrpových luk","CZ","Svobodová","DISM","DISM",null,null,null,null,null,null,null,null,null,null,{"$f":"SUM(D6:O6)","v":0}," ",{"$f":"COUNT(D6:O6)","v":0}]
["Felicia z Allahovy země","CZ","Ptáčková ",null,2,1,1,null,null,null,null,null,"DISM",null,1,{"$f":"SUM(D7:O7)","v":5}," ",{"$f":"COUNT(D7:O7)","v":4}]
[]
[]
["PES"]
["Rituál ze Zličinských luk","CZ","Eliášová",null,4,null,3,2,null,3,2,null,3,null,3,{"$f":"SUM(D11:O11)","v":20},20,{"$f":"COUNT(D11:O11)","v":7}]
["Eyken z Allahovy země","CZ","Ptáčková ",null,3,2,2,1,1,"DISQ",null,null,null,null,2,{"$f":"SUM(D12:O12)","v":11},11,{"$f":"COUNT(D12:O12)","v":6}]
[null,null,null,null,null,null,null,null,null,null,null,null,null,null,null,{"$f":"SUM(D13:O13)","v":0}," ",{"$f":"COUNT(D13:O13)","v":0}]
[null,null,null,null,null,null,null,null,null,null,null,null,null,null,null,{"$f":"SUM(D14:O14)","v":0}," ",{"$f":"COUNT(D14:O14)","v":0}]
[null,null,null,null,null,null,null,null,null,null,null,null,null,null,null,{"$f":"SUM(D15:O15)","v":0}," ",{"$f":"COUNT(D15:O15)","v":0}]

{"sheet":"Azavak","index":2,"n_rows":21,"n_cols":18,"rows_kept":21,"cut":false,"hidden":false,"merged":[[0,15,2,15],[0,16,2,16],[0,17,2,17]]}
[null,null,null,"23.3.","13.4.","1.5.","11.5.","30.6.","7.7.","14.7.","3.8.","18.8.","14.9./26.10.","5.10.","12.10.","součet","body započítávané do soutěže","počet závodů"]
["AZAVAK",null,null,"Kolín","Lednice","Lednice","Kolín","Lednice","Lednice","Kolín","Kolín","Lednice","Kolín","Kolín","Lednice"]
["jméno psa","země","majitel",1,2,3,4,5,6,7,8,9,10,11,12]
["PES"]
[null,null,null,null,null,null,null,null,null,null,null,null,null,null,null,{"$f":"SUM(D5:O5)","v":0}," ",{"$f":"COUNT(D5:O5)","v":0}]
[null,null,null,null,null,null,null,null,null,null,null,null,null,null,null,{"$f":"SUM(D6:O6)","v":0}," ",{"$f":"COUNT(D6:O6)","v":0}]
[null,null,null,null,null,null,null,null,null,null,null,null,null,null,null,{"$f":"SUM(D7:O7)","v":0}," ",{"$f":"COUNT(D7:O7)","v":0}]
[null,null,null,null,null,null,null,null,null,null,null,null,null,null,null,{"$f":"SUM(D8:O8)","v":0}," ",{"$f":"COUNT(D8:O8)","v":0}]
[null,null,null,null,null,null,null,null,null,null,null,null,null,null,null,{"$f":"SUM(D9:O9)","v":0}," ",{"$f":"COUNT(D9:O9)","v":0}]
[]
["FENA"]
[null,null,null,null,null,null,null,null,null,null,null,null,null,null,null,{"$f":"SUM(D12:O12)","v":0}," ",{"$f":"COUNT(D12:O12)","v":0}]
[null,null,null,null,null,null,null,null,null,null,null,null,null,null,null,{"$f":"SUM(D13:O13)","v":0}," ",{"$f":"COUNT(D13:O13)","v":0}]
[null,null,null,null,null,null,null,null,null,null,null,null,null,null,null,{"$f":"SUM(D14:O14)","v":0}," ",{"$f":"COUNT(D14:O14)","v":0}]
[null,null,null,null,null,null,null,null,null,null,null,null,null,null,null,{"$f":"SUM(D15:O15)","v":0}," ",{"$f":"COUNT(D15:O15)","v":0}]
[null,null,null,null,null,null,null,null,null,null,null,null,null,null,null,{"$f":"SUM(D16:O16)","v":0}," ",{"$f":"COUNT(D16:O16)","v":0}]
[]
["PES SENIOR"]
[null,null,null,null,null,null,null,null,null,null,null,null,null,null,null,{"$f":"SUM(D19:O19)","v":0}," ",{"$f":"COUNT(D19:O19)","v":0}]
[null,null,null,null,null,null,null,null,null,null,null,null,null,null,null,{"$f":"SUM(D20:O20)","v":0}," ",{"$f":"COUNT(D20:O20)","v":0}]
[null,null,null,null,null,null,null,null,null,null,null,null,null,null,null,{"$f":"SUM(D21:O21)","v":0}," ",{"$f":"COUNT(D21:O21)","v":0}]

{"sheet":"Barzoj","index":3,"n_rows":20,"n_cols":18,"rows_kept":20,"cut":false,"hidden":false,"merged":[[0,15,2,15],[0,16,2,16],[0,17,2,17]]}
[null,null,null,"23.3.","13.4.","1.5.","11.5.","30.6.","7.7.","14.7.","3.8.","18.8.","14.9./26.10.","5.10.","12.10.","součet","body započítávané do soutěže","počet závodů"]
["BARZOJ",null,null,"Kolín","Lednice","Lednice","Kolín","Lednice","Lednice","Kolín","Kolín","Lednice","Kolín","Kolín","Lednice"]
["jméno psa","země","majitel",1,2,3,4,5,6,7,8,9,10,11,12]
["PES"]
["I am Patiś Son Tatranská Labka","CZ","Kubínová",null,null,null,1,null,null,null,null,null,null,null,null,{"$f":"SUM(D5:O5)","v":1}," ",{"$f":"COUNT(D5:O5)","v":1}]
[null,null,null,null,null,null,null,null,null,null,null,null,null,null,null,{"$f":"SUM(D6:O6)","v":0}," ",{"$f":"COUNT(D6:O6)","v":0}]
[null,null,null,null,null,null,null,null,null,null,null,null,null,null,null,{"$f":"SUM(D7:O7)","v":0}," ",{"$f":"COUNT(D7:O7)","v":0}]
[null,null,null,null,null,null,null,null,null,null,null,null,null,null,null,{"$f":"SUM(D8:O8)","v":0}," ",{"$f":"COUNT(D8:O8)","v":0}]
[]
["FENA"]
["Valeska Sail On Silvergil At Charsandal","SK","Macejová",null,1,null,null,null,1,null,null,null,null,null,1,{"$f":"SUM(D11:O11)","v":3}," ",{"$f":"COUNT(D11:O11)","v":3}]
[null,null,null,null,null,null,null,null,null,null,null,null,null,null,null,{"$f":"SUM(D12:O12)","v":0}," ",{"$f":"COUNT(D12:O12)","v":0}]
[null,null,null,null,null,null,null,null,null,null,null,null,null,null,null,{"$f":"SUM(D13:O13)","v":0}," ",{"$f":"COUNT(D13:O13)","v":0}]
[null,null,null,null,null,null,null,null,null,null,null,null,null,null,null,{"$f":"SUM(D14:O14)","v":0}," ",{"$f":"COUNT(D14:O14)","v":0}]
[]
["SENIOR FENA"]
[null,null,null,null,null,null,null,null,null,null,null,null,null,null,null,{"$f":"SUM(D17:O17)","v":0}," ",{"$f":"COUNT(D17:O17)","v":0}]
[null,null,null,null,null,null,null,null,null,null,null,null,null,null,null,{"$f":"SUM(D18:O18)","v":0}," ",{"$f":"COUNT(D18:O18)","v":0}]
[null,null,null,null,null,null,null,null,null,null,null,null,null,null,null,{"$f":"SUM(D19:O19)","v":0}," ",{"$f":"COUNT(D19:O19)","v":0}]
[null,null,null,null,null,null,null,null,null,null,null,null,null,null,null,{"$f":"SUM(D20:O20)","v":0}," ",{"$f":"COUNT(D20:O20)","v":0}]

{"sheet":"Greyhound","index":4,"n_rows":24,"n_cols":18,"rows_kept":24,"cut":false,"hidden":false,"merged":[[0,15,2,15],[0,16,2,16],[0,17,2,17]]}
[null,null,null,"23.3.","13.4.","1.5.","11.5.","30.6.","7.7.","14.7.","3.8.","18.8.","14.9./26.10.","5.10.","12.10.","součet","body započítávané do soutěže","počet závodů"]
["GREYHOUND",null,null,"Kolín","Lednice","Lednice","Kolín","Lednice","Lednice","Kolín","Kolín","Lednice","Kolín","Kolín","Lednice"]
["jméno psa","země","majitel",1,2,3,4,5,6,7,8,9,10,11,12]
["PES"]
["Chanson Jumping Jet","cz","Schejbal",null,1,null,1,1,1,1,1,1,1,null,1,{"$f":"SUM(D5:O5)","v":9},7,{"$f":"COUNT(D5:O5)","v":9}]
[null,null,null,null,null,null,null,null,null,null,null,null,null,null,null,{"$f":"SUM(D6:O6)","v":0}," ",{"$f":"COUNT(D6:O6)","v":0}]
[null,null,null,null,null,null,null,null,null,null,null,null,null,null,null,{"$f":"SUM(D7:O7)","v":0}," ",{"$f":"COUNT(D7:O7)","v":0}]
[null,null,null,null,null,null,null,null,null,null,null,null,null,null,null,{"$f":"SUM(D8:O8)","v":0}," ",{"$f":"COUNT(D8:O8)","v":0}]
[]
["FENA "]
[null,null,null,null,null,null,null,null,null,null,null,null,null,null,null,{"$f":"SUM(D11:O11)","v":0}," ",{"$f":"COUNT(D11:O11)","v":0}]
[null,null,null,null,null,null,null,null,null,null,null,null,null,null,null,0," ",0]
[null,null,null,null,null,null,null,null,null,null,null,null,null,null,null,0," ",0]
[null,null,null,null,null,null,null,null,null,null,null,null,null,null,null,0," ",0]
[null,null,null,null,null,null,null,null,null,null,null,null,null,null,null,0," ",0]
[null,null,null,null,null,null,null,null,null,null,null,null,null,null,null,0," ",0]
[]
["FENA SENIOR"]
[null,null,null,null,null,null,null,null,null,null,null,null,null,null,null,{"$f":"SUM(D19:O19)","v":0}," ",{"$f":"COUNT(D19:O19)","v":0}]
[null,null,null,null,null,null,null,null,null,null,null,null,null,null,null,0," ",0]
[null,null,null,null,null,null,null,null,null,null,null,null,null,null,null,0," ",0]
[null,null,null,null,null,null,null,null,null,null,null,null,null,null,null,0," ",0]
[null,null,null,null,null,null,null,null,null,null,null,null,null,null,null,0," ",0]
[null,null,null,null,null,null,null,null,null,null,null,null,null,null,null,0," ",0]

{"sheet":"Italský chrtík","index":5,"n_rows":64,"n_cols":18,"rows_kept":64,"cut":false,"hidden":false,"merged":[[0,15,2,15],[0,16,2,16],[0,17,2,17]]}
[null,null,null,"23.3.","13.4.","1.5.","11.5.","30.6.","7.7.","14.7.","3.8.","18.8.","14.9./26.10.","5.10.","12.10.","součet","body započítávané do soutěže","počet závodů"]
["ITALSKÝ CHRTÍK ",null,null,"Kolín","Lednice","Lednice","Kolín","Lednice","Lednice","Kolín","Kolín","Lednice","Kolín","Kolín","Lednice"]
["jméno psa","země","majitel",1,2,3,4,5,6,7,8,9,10,11,12]
["PES"]
["Jeans Feritte Bugsy ","CZ","Palánová",11,null,10,5,2,6,4,3,5,3,3,4,{"$f":"SUM(D5:O5)","v":56},{"$f":"+D5+F5+I5+L5+G5+J5+O5","v":45},{"$f":"COUNT(D5:O5)","v":11}]
["Asher Adisiah ","CZ","Musilová",4,5,null,2,null,null,3,1,null,1,2,1,19,{"$f":"+D6+E6+G6+J6+K6+N6+O6","v":18},8]
["Udo Next Level","CZ","Ryvolová",null,7,null,3,null,4,null,null,1,null,null,3,{"$f":"SUM(D7:O7)","v":18},{"$f":"+P7","v":18},5]
["Cezar Grandezza Divina","SK","Kissová",null,null,7,null,1,5,null,null,3,null,null,7,23,null,5]
["Enrico Ettore Camino Bianca","CZ","Vašíčková",null,8,null,null,3,null,null,null,4,null,null,5,20,null,4]
["Greytoda Uwe","HUN","Patko",null,6,8,null,null,null,null,null,null,null,null,null,14,null,2]
["Karamel Feritte Bugsy","CZ","Baxová",9,"DISM","DISM",4,null,null,"DISM",null,null,null,null,null,13,null,2]
["Alessio Affettuoso Tingl Tangl ","CZ","Králová",8,4,null,null,null,null,null,null,null,null,null,null,12,null,2]
["Sprintholic Friendly Face","FIN","Hakola",null,null,9,null,null,null,null,null,null,null,null,null,9,null,1]
["Jinjo Assetto Corse","IT","Siantová",null,null,6,null,null,3,null,null,null,null,null,null,9,null,2]
["Solstice Light Awaken Force ","PL","Wilczynska",7,null,null,null,null,null,null,null,null,null,null,2,9,null,2]
["Greytoday Tivon","HUN","Patko",null,3,4,null,null,null,null,null,null,null,null,null,7,null,2]
["Falcon Flavius IT Grey Butterfly","CZ","Šefčíková",null,null,5,null,null,null,null,null,null,null,null,null,5,null,1]
["Perpetum Feritte Bugsy ","CZ","Baxová",2,null,2,"DISQ",null,null,null,null,null,null,null,null,4,null,2]
["Peppe Tileco","CZ","Barák",null,2,null,null,null,2,null,null,null,null,null,null,4,null,2]
["Greytoday Tobie","HUN","Patko",null,null,3,null,null,null,null,null,null,null,null,null,3,null,1]
["Eros Noční Jas","CZ","Dvořáková",null,null,null,null,null,null,2,null,null,null,null,null,2,null,1]
["Widar Kurnous","SK","Šuleková",null,null,null,null,null,null,null,null,2,null,null,6,8,null,2]
["Bartolomeo Blue Infinity","CZ","Koppová",null,null,null,null,null,null,null,2,null,2,null,null,4,null,2]
["Xa Cru Tileco","CZ","Tvarogová",null,null,null,null,null,1,null,null,null,null,null,null,1,null,1]
["Vrael Můj Andílek","CZ","Medlíková",null,9,11,null,null,null,null,null,null,null,null,null,20,null,2]
[]
["FENA"]
["Chicky Feritte Bugsy","CZ","Baxová",13,6,5,4,null,9,4,null,null,null,5,null,{"$f":"SUM(D28:O28)","v":46},46,{"$f":"COUNT(D28:O28)","v":7}]
["Nataly Feritte Bugsy ","CZ","Baxová",12,5,3,3,null,7,2,null,null,null,4,null,36,{"$f":"+P29","v":36},7]
["Víla Feritte Bugsy ","CZ","Buřičová",10,3,null,2,null,6,3,null,7,3,null,3,37,35,8]
["Jasmine Feritte Bugsy ","CZ","Šulcová",1,null,1,1,1,2,1,null,3,1,1,1,13,10,10]
["Solstice Light of Luna (fena)","PL","Wilczynska",14,8,null,null,3,null,null,null,null,null,null,6,31,null,4]
["Toccata Bohemia Skara","CZ","Novodvorská",null,7,null,null,null,8,null,null,"DISM",null,null,null,15,null,2]
["Greytoday Thayah","HUN","Patko",null,9,4,null,null,null,null,null,null,null,null,null,13,null,2]
["Solstice Light of Luna (fena)",null,null,null,null,null,null,null,null,null,null,null,null,null,null,0,null,0]
["Chicky Feritte, Bugsy (fena)",null,null,null,null,null,null,null,null,null,null,null,null,null,null,0,null,0]
[null,null,null,null,null,null,null,null,null,null,null,null,null,null,null,0,null,0]
[null,null,null,null,null,null,null,null,null,null,null,null,null,null,null,0,null,0]
[null,null,null,null,null,null,null,null,null,null,null,null,null,null,null,0,null,0]
[null,null,null,null,null,null,null,null,null,null,null,null,null,null,null,0,null,0]
[null,null,null,null,null,null,null,null,null,null,null,null,null,null,null,0,null,0]
["Valli Tileco ","CZ","Tvarogová",5,null,null,null,null,4,null,null,null,null,null,null,9,null,2]
["Giannaadelchi","CZ","Primusová",null,null,null,null,2,null,null,null,5,2,null,2,11,null,4]
["Aghata Tingl Tangl ","CZ","Váchová",6,null,null,null,null,null,null,null,null,null,null,4,10,null,2]
["Greytoday Ullaya","HUN","Patko",null,4,2,null,null,null,null,null,null,null,null,null,6,null,2]
["Vittoria Tileco","AT","Pírová",null,null,null,null,null,null,null,null,6,null,null,null,6,null,1]
["Tilli Tileco","CZ","Tvarogová",null,null,null,null,null,5,null,null,null,null,null,null,5,null,1]
["Tiziana Tileco","SK","Kleinová",null,null,null,null,null,null,null,null,4,null,null,null,4,null,1]
["Ultra Ginetta Annaperla ","CZ","Váchová",3,null,null,null,null,null,null,null,null,null,null,null,3,null,1]
["Namah Shivaya Assetto Corse","CZ","Ivánek",null,null,null,null,null,3,null,null,"DISM",null,null,null,3,null,1]
["Fréa Gol-Endor Dora Grey","SK","Finiková",null,2,null,null,null,null,null,null,null,null,null,null,2,null,1]
["Adisiah Adaiah","SK","Ruzinská",null,"MWDR",null,null,null,1,null,null,null,null,null,null,1,null,1]
["Solstice Light This Is The Way","PL","Wilczynska",null,null,null,null,null,null,null,null,null,null,null,5,5,null,1]
[]
["SENIOR PES"]
["Zippo Libre na Klínkách","CZ","Ramešová",null,1,null,null,2,1,null,null,1,1,null,1,{"$f":"SUM(D56:O56)","v":7},7,{"$f":"COUNT(D56:O56)","v":6}]
["Easter Bubble Assetto Corse","CZ","Rejda",null,null,1,null,null,null,null,null,null,null,null,null,{"$f":"SUM(D57:O57)","v":1}," ",{"$f":"COUNT(D57:O57)","v":1}]
["Classic Edition Rosanelli","CZ","Davidová",null,null,null,null,null,null,null,1,null,null,null,null,{"$f":"SUM(D58:O58)","v":1}," ",{"$f":"COUNT(D58:O58)","v":1}]
["Essenziale Assetto Corse","IT","Siantová",null,null,2,null,null,3,null,null,null,null,null,null,{"$f":"SUM(D59:O59)","v":5},null,{"$f":"COUNT(D59:O59)","v":2}]
[]
["SENIOR FENA"]
["Anabella Fragoletta","CZ","Plačková",3,null,null,1,1,2,1,2,null,2,null,null,{"$f":"SUM(D62:O62)","v":12},12,{"$f":"COUNT(D62:O62)","v":7}]
["Etna Prestissimo","PL","Wilczynska",2,2,null,null,3,null,null,null,null,null,null,null,{"$f":"SUM(D63:O63)","v":7},null,{"$f":"COUNT(D63:O63)","v":3}]
[null,null,null,null,null,null,null,null,null,null,null,null,null,null,null,{"$f":"SUM(D64:O64)","v":0},null,{"$f":"COUNT(D64:O64)","v":0}]

{"sheet":"saluki","index":6,"n_rows":28,"n_cols":18,"rows_kept":28,"cut":false,"hidden":false,"merged":[[0,15,2,15],[0,16,2,16],[0,17,2,17]]}
[null,null,null,"23.3.","13.4.","1.5.","11.5.","30.6.","7.7.","14.7.","3.8.","18.8.","14.9./26.10.","5.10.","12.10.","součet","body započítávané do soutěže","počet závodů"]
["SALUKI",null,null,"Kolín","Lednice","Lednice","Kolín","Lednice","Lednice","Kolín","Kolín","Lednice","Kolín","Kolín","Lednice"]
["jméno psa","země","majitel",1,2,3,4,5,6,7,8,9,10,11,12]
["PES"]
["Emad av Min Tera","CZ","Lučná",null,null,3,null,3,null,null,null,null,null,null,null,{"$f":"SUM(D5:O5)","v":6},null,{"$f":"COUNT(D5:O5)","v":2}]
["Jawad al Zahra","CZ","Pudová",null,null,null,null,null,null,null,null,null,3,null,null,{"$f":"SUM(D6:O6)","v":3},null,{"$f":"COUNT(D6:O6)","v":1}]
["Afshar Century Mohabbat","CZ","Holec",null,1,null,null,null,null,null,null,null,null,null,null,{"$f":"SUM(D7:O7)","v":1},null,{"$f":"COUNT(D7:O7)","v":1}]
[null,null,null,null,null,null,null,null,null,null,null,null,null,null,null,{"$f":"SUM(D8:O8)","v":0},null,{"$f":"COUNT(D8:O8)","v":0}]
[]
[]
["FENA"]
["Acadia Tawalla","CZ","Andziol",2,2,1,2,null,4,"WDR",null,null,4,null,1,{"$f":"SUM(D12:O12)","v":16},16,{"$f":"COUNT(D12:O12)","v":7}]
["Jameelah Al Zahra","CZ","Kupec",null,null,null,null,1,3,2,null,null,2,null,null,{"$f":"SUM(D13:O13)","v":8},null,{"$f":"COUNT(D13:O13)","v":4}]
["Ouarda of Falconers Dream","AT","Wiesher",null,null,null,null,null,5,null,null,null,null,null,null,{"$f":"SUM(D14:O14)","v":5},null,{"$f":"COUNT(D14:O14)","v":1}]
["Basilah Devon Exe","CZ","Vašíková",null,null,2,null,2,null,null,null,null,null,null,null,{"$f":"SUM(D15:O15)","v":4},null,{"$f":"COUNT(D15:O15)","v":2}]
["Boroumad Century Mohabbat","CZ","Jandová",null,null,null,1,null,null,null,1,null,null,null,null,{"$f":"SUM(D16:O16)","v":2},null,{"$f":"COUNT(D16:O16)","v":2}]
["Jasmine al Zahra","CZ","Pudová",null,null,null,null,null,null,null,null,null,1,null,null,{"$f":"SUM(D17:O17)","v":1},null,{"$f":"COUNT(D17:O17)","v":1}]
["Ciel Besaba Giliath","CZ","Bartošocá","DISQ",null,null,null,null,null,null,null,null,null,null,null,{"$f":"SUM(D18:O18)","v":0},null,{"$f":"COUNT(D18:O18)","v":0}]
["Ordak of Falconers Dream","AT","Wiesher",null,null,null,null,null,"DISQ",null,null,null,null,null,null,{"$f":"SUM(D19:O19)","v":0},null,{"$f":"COUNT(D19:O19)","v":0}]
["Cashmere Deluca Moravia","CZ","Hynková",null,null,null,null,null,"DISQ",null,null,null,null,null,null,{"$f":"SUM(D20:O20)","v":0},null,{"$f":"COUNT(D20:O20)","v":0}]
[]
["SENIOR PES"]
["Arpak Faravahar","CZ","Havrdová",null,null,null,null,null,null,null,null,null,1,null,null,{"$f":"SUM(D23:O23)","v":1},null,{"$f":"COUNT(D23:O23)","v":1}]
[null,null,null,null,null,null,null,null,null,null,null,null,null,null,null,{"$f":"SUM(D24:O24)","v":0},null,{"$f":"COUNT(D24:O24)","v":0}]
[]
["SENIOR FENA"]
["Larabee Azadi Al Djiibaajah","CZ","Kracmarová",1,null,null,1,null,null,null,null,null,null,null,null,{"$f":"SUM(D27:O27)","v":2},null,{"$f":"COUNT(D27:O27)","v":2}]
[null,null,null,null,null,null,null,null,null,null,null,null,null,null,null,{"$f":"SUM(D28:O28)","v":0},null,{"$f":"COUNT(D28:O28)","v":0}]

{"sheet":"sloughi","index":7,"n_rows":25,"n_cols":18,"rows_kept":25,"cut":false,"hidden":false,"merged":[[0,15,2,15],[0,16,2,16],[0,17,2,17]]}
[null,null,null,"23.3.","13.4.","1.5.","11.5.","30.6.","7.7.","14.7.","3.8.","18.8.","14.9./26.10.","5.10.","12.10.","součet","body započítávané do soutěže","počet závodů"]
["SLOUGHI",null,null,"Kolín","Lednice","Lednice","Kolín","Lednice","Lednice","Kolín","Kolín","Lednice","Kolín","Kolín","Lednice"]
["jméno psa","země","majitel",1,2,3,4,5,6,7,8,9,10,11,12]
["PES"]
["del Khazaris Karel ag Dalvit","cz","Kubová",null,1,1,1,1,2,1,null,2,null,null,1,{"$f":"SUM(D5:O5)","v":10},9,{"$f":"COUNT(D5:O5)","v":8}]
["Dalmas Tulpar","CZ","Kubová",null,null,null,null,null,null,null,null,3,null,null,2,{"$f":"SUM(D6:O6)","v":5},null,{"$f":"COUNT(D6:O6)","v":2}]
["Asaad Sayed Assahra","CZ","Zahálková",null,null,null,null,null,1,null,null,null,null,null,null,{"$f":"SUM(D7:O7)","v":1},null,{"$f":"COUNT(D7:O7)","v":1}]
["Tyalou Dudomaine al Farid","PL","Cielinska",null,null,null,null,null,null,null,null,"DISQ",null,null,null,{"$f":"SUM(D8:O8)","v":0},null,{"$f":"COUNT(D8:O8)","v":0}]
[null,null,null,null,null,null,null,null,null,null,null,null,null,null,null,{"$f":"SUM(D9:O9)","v":0},null,{"$f":"COUNT(D9:O9)","v":0}]
[]
["FENA"]
["Alzena Bella la Rossa","CZ","Wieznerová",null,null,null,2,2,3,2,null,4,null,null,null,{"$f":"SUM(D12:O12)","v":13},13,{"$f":"COUNT(D12:O12)","v":5}]
["Nouria Mahanajim","PL","Bialowiejska",null,null,null,null,null,null,null,null,5,null,null,null,{"$f":"SUM(D13:O13)","v":5}," ",{"$f":"COUNT(D13:O13)","v":1}]
[null,null,null,null,null,null,null,null,null,null,null,null,null,null,null,{"$f":"SUM(D14:O14)","v":0}," ",{"$f":"COUNT(D14:O14)","v":0}]
[null,null,null,null,null,null,null,null,null,null,null,null,null,null,null,{"$f":"SUM(D15:O15)","v":0}," ",{"$f":"COUNT(D15:O15)","v":0}]
[]
["SENIOR PES"]
[null,null,null,null,null,null,null,null,null,null,null,null,null,null,null,{"$f":"SUM(D18:O18)","v":0}," ",{"$f":"COUNT(D18:O18)","v":0}]
[null,null,null,null,null,null,null,null,null,null,null,null,null,null,null,{"$f":"SUM(D19:O19)","v":0}," ",{"$f":"COUNT(D19:O19)","v":0}]
[null,null,null,null,null,null,null,null,null,null,null,null,null,null,null,{"$f":"SUM(D20:O20)","v":0}," ",{"$f":"COUNT(D20:O20)","v":0}]
[]
["SENIOR FENA"]
[null,null,null,null,null,null,null,null,null,null,null,null,null,null,null,{"$f":"SUM(D23:O23)","v":0}," ",{"$f":"COUNT(D23:O23)","v":0}]
[null,null,null,null,null,null,null,null,null,null,null,null,null,null,null,{"$f":"SUM(D24:O24)","v":0}," ",{"$f":"COUNT(D24:O24)","v":0}]
[null,null,null,null,null,null,null,null,null,null,null,null,null,null,null,{"$f":"SUM(D25:O25)","v":0}," ",{"$f":"COUNT(D25:O25)","v":0}]

{"sheet":"Španělský galgo","index":8,"n_rows":27,"n_cols":18,"rows_kept":27,"cut":false,"hidden":false,"merged":[[0,15,2,15],[0,16,2,16],[0,17,2,17]]}
[null,null,null,"23.3.","13.4.","1.5.","11.5.","30.6.","7.7.","14.7.","3.8.","18.8.","14.9./26.10.","5.10.","12.10.","součet","body započítávané do soutěže","počet závodů"]
["ŠPANĚLSKÝ GALGO",null,null,"Kolín","Lednice","Lednice","Kolín","Lednice","Lednice","Kolín","Kolín","Lednice","Kolín","Kolín","Lednice"]
["jméno psa","země","majitel",1,2,3,4,5,6,7,8,9,10,11,12]
["PES"]
["Beastie Boy Rabbit´s nightmare","CZ","Keberlová",1,2,2,null,4,null,3,null,1,null,null,1,{"$f":"SUM(D5:O5)","v":14},14,{"$f":"COUNT(D5:O5)","v":7}]
["Aramis de Galgos Paganiniho symfonie","CZ","Kastlová",null,null,null,null,3,3,2,2,null,null,null,null,{"$f":"SUM(D6:O6)","v":10},null,{"$f":"COUNT(D6:O6)","v":4}]
["Big Bang Element Adrenaline","AT","Fleischmann",null,null,null,null,null,2,null,null,null,null,null,null,{"$f":"SUM(D7:O7)","v":2},null,{"$f":"COUNT(D7:O7)","v":1}]
["Barbarian Rabbit´s Nightmare","CZ","Richterová",null,null,null,null,null,null,1,null,null,null,null,null,{"$f":"SUM(D8:O8)","v":1},null,{"$f":"COUNT(D8:O8)","v":1}]
["Best of Element Adrenaline","AT","Fleischmann",null,null,null,null,null,1,null,null,null,null,null,null,{"$f":"SUM(D9:O9)","v":1},null,{"$f":"COUNT(D9:O9)","v":1}]
[null,null,null,null,null,null,null,null,null,null,null,null,null,null,null,{"$f":"SUM(D10:O10)","v":0},null,{"$f":"COUNT(D10:O10)","v":0}]
[]
["FENA"]
["Ballerina Rabbit´s nightmare","CZ","Richterová",null,null,null,1,2,null,1,4,3,null,null,null,{"$f":"SUM(D13:O13)","v":11},11,{"$f":"COUNT(D13:O13)","v":5}]
["Cleo","AT","Schiman-Benauer",null,null,null,null,null,3,null,null,4,null,null,2,9,null,3]
["Arwen Element Adrenalin","CZ","Brandová",null,null,"DISM",null,null,null,3,null,2,null,null,null,5,null,2]
["Artemisia","CZ","Nováčková",null,null,null,null,null,null,2,3,null,null,null,null,5,null,2]
["Bonita Noche Element Adrenaline","CZ","Eliášová",null,null,null,null,null,null,4,null,null,null,null,null,4,null,1]
["Angelika de GalgosPaganiniho symfonie","CZ","Kastlová",null,null,null,null,1,2,null,1,null,null,null,null,4,null,3]
["Bluebell Rabbit´s nightmare","SK",null,null,1,null,null,null,null,null,null,null,null,null,null,1,null,1]
["Ojo Caliente Caritas Palesio","CZ","Kastlová",null,null,null,null,null,1,null,null,null,null,null,null,1,null,1]
["Hortensia Hot Isle","CZ","Richterová",null,null,null,null,null,null,null,null,null,null,null,null,0,null,0]
[]
["SENIOR PES"]
["Archer Rabbit´s nightmare","CZ","Richterová",null,null,null,1,2,null,2,null,1,null,null,1,{"$f":"SUM(D24:O24)","v":7},7,{"$f":"COUNT(D24:O24)","v":5}]
[]
["SENIOR FENA"]
["Hortensia Hot Isle","CZ","Richterová",null,null,null,2,1,null,1,1,null,null,null,null,{"$f":"SUM(D27:O27)","v":5}," ",{"$f":"COUNT(D27:O27)","v":4}]

{"sheet":"whippet","index":9,"n_rows":98,"n_cols":18,"rows_kept":98,"cut":false,"hidden":false,"merged":[[0,15,2,15],[0,16,2,16],[0,17,2,17]]}
[null,null,null,"23.3.","13.4.","1.5.","11.5.","30.6.","7.7.","14.7.","3.8.","18.8.","14.9./26.10","5.10.","12.10.","součet","body započítávané do soutěže","počet závodů"]
["WHIPPET",null,null,"Kolín","Lednice","Lednice","Kolín","Lednice","Lednice","Kolín","Kolín","Lednice","Kolín","Kolín","Lednice"]
["jméno psa","země","majitel",1,2,3,4,5,6,7,8,9,10,11,12]
["PES"]
["Apollon Bon Esprit","CZ","Lacinová",6,5,8,9,8,null,9,3,9,14,6,11,{"$f":"SUM(D5:O5)","v":88},68,{"$f":"COUNT(D5:O5)","v":11}]
["Harley Blue North","CZ","Macháčková",null,11,7,5,6,null,6,null,8,12,null,10,{"$f":"SUM(D6:O6)","v":65},60,{"$f":"COUNT(D6:O6)","v":8}]
["Aaron Bon Esprit","CZ","Šlechta Petr",5,4,6,7,null,5,"DISQ",null,6,9,null,13,{"$f":"SUM(D7:O7)","v":55},51,{"$f":"COUNT(D7:O7)","v":8}]
["Carson Pepper Bono Venandi","CZ","Pevná",null,null,null,null,7,6,null,1,4,13,4,8,{"$f":"SUM(D8:O8)","v":43},43,{"$f":"COUNT(D8:O8)","v":7}]
["Intouch Inventum ","CZ","Šalata",3,6,2,3,null,null,4,null,null,6,null,6,{"$f":"SUM(D9:O9)","v":30},30,{"$f":"COUNT(D9:O9)","v":7}]
["Caliban Pinto Bono Venandi","CZ","Bittner",null,null,1,null,1,3,null,null,2,null,null,3,{"$f":"SUM(D10:O10)","v":10},10,{"$f":"COUNT(D10:O10)","v":5}]
["Bonetto Lee Welcoming Dog","PL","Grzadziel",7,2,null,null,null,null,8,null,null,15,null,null,{"$f":"SUM(D11:O11)","v":32},null,{"$f":"COUNT(D11:O11)","v":4}]
["Chacky Blue North","CZ","Slanovodský",null,10,9,null,3,null,null,null,null,null,null,9,{"$f":"SUM(D12:O12)","v":31},null,{"$f":"COUNT(D12:O12)","v":4}]
["Charly Blue North","CZ","Bronec",null,9,5,null,2,null,null,null,null,null,null,12,{"$f":"SUM(D13:O13)","v":28},null,{"$f":"COUNT(D13:O13)","v":4}]
["Busty King Welcoming Dog","CZ","Jašurková",null,null,null,6,null,null,null,2,null,11,7,null,{"$f":"SUM(D14:O14)","v":26},null,{"$f":"COUNT(D14:O14)","v":4}]
["Dare to Win Fancy That","CZ","Vacková",null,8,null,8,4,null,null,4,null,null,null,null,{"$f":"SUM(D15:O15)","v":24},null,{"$f":"COUNT(D15:O15)","v":4}]
["Forest Jump Ready Go","CZ","Kostková",null,null,null,null,null,null,null,null,null,7,8,7,{"$f":"SUM(D16:O16)","v":22},null,{"$f":"COUNT(D16:O16)","v":3}]
["Inspiration Inventum ","CZ","Kosová",2,null,3,4,null,null,null,null,null,10,null,null,{"$f":"SUM(D17:O17)","v":19},null,{"$f":"COUNT(D17:O17)","v":4}]
["Camaro New Nazaret","CZ","Mikovec",null,null,null,null,5,null,7,null,7,null,null,null,{"$f":"SUM(D18:O18)","v":19},null,{"$f":"COUNT(D18:O18)","v":3}]
["Ragnarok de la Deesse aux....","CZ","Molnár",null,null,4,null,null,null,5,null,null,4,3,null,{"$f":"SUM(D19:O19)","v":16},null,{"$f":"COUNT(D19:O19)","v":4}]
["Wiss Vlapan","CZ","Dvořáková",null,null,null,null,null,null,null,null,null,16,null,null,{"$f":"SUM(D20:O20)","v":16},null,{"$f":"COUNT(D20:O20)","v":1}]
["Dark Shadow New Nazaret","CZ","Sokolíková",null,null,null,null,null,1,3,null,null,5,null,4,{"$f":"SUM(D21:O21)","v":13},null,{"$f":"COUNT(D21:O21)","v":4}]
["Aristo Crat Bon Esprit","CZ","Rokyta",null,null,null,null,null,null,null,null,5,3,null,null,{"$f":"SUM(D22:O22)","v":8},null,{"$f":"COUNT(D22:O22)","v":2}]
["Dellinger Ready Go","CZ","Jedlička",null,null,null,null,null,null,null,null,null,8,null,null,{"$f":"SUM(D23:O23)","v":8},null,{"$f":"COUNT(D23:O23)","v":1}]
["Adeo Terra Stella Bohemica ","CZ","Novotný","WDR",7,null,null,null,null,null,null,null,null,null,null,{"$f":"SUM(D24:O24)","v":7},null,{"$f":"COUNT(D24:O24)","v":1}]
["Dare to Follow Sonic Workaholic","PL","Gronowska",null,null,null,null,null,4,null,null,3,null,null,null,{"$f":"SUM(D25:O25)","v":7},null,{"$f":"COUNT(D25:O25)","v":2}]
["Ayrton Welcoming dog","CZ","Vaněk ",4,null,null,2,null,null,null,null,null,null,null,null,{"$f":"SUM(D26:O26)","v":6},null,{"$f":"COUNT(D26:O26)","v":2}]
["Fun Tom Ready Go","CZ","Koumar",null,null,null,null,null,null,null,null,null,null,5,null,{"$f":"SUM(D27:O27)","v":5},null,{"$f":"COUNT(D27:O27)","v":1}]
["Chipsy Blue North","CZ","Havrdová",null,null,null,null,null,null,null,null,null,null,null,5,{"$f":"SUM(D28:O28)","v":5},null,{"$f":"COUNT(D28:O28)","v":1}]
["Fósforos Ayort Back","CZ","Vaňková",null,null,null,null,null,null,null,null,null,2,2,null,{"$f":"SUM(D29:O29)","v":4},null,{"$f":"COUNT(D29:O29)","v":2}]
["Firebomb Nulli Secundus","SK","Kohutová",null,3,null,null,null,null,null,null,null,null,null,null,{"$f":"SUM(D30:O30)","v":3},null,{"$f":"COUNT(D30:O30)","v":1}]
["El Pablo Sonic Workaholic","PL","Gronowska",null,null,null,null,null,2,null,null,1,null,null,null,{"$f":"SUM(D31:O31)","v":3},null,{"$f":"COUNT(D31:O31)","v":2}]
["Endymión Ayort Back","CZ","Němcovi",null,null,null,null,null,null,null,null,null,1,1,null,{"$f":"SUM(D32:O32)","v":2},null,{"$f":"COUNT(D32:O32)","v":2}]
["Tyrrell Vlapan","CZ","Vorlíková  Jedličková",null,null,null,1,null,null,null,null,null,null,null,null,{"$f":"SUM(D33:O33)","v":1},null,{"$f":"COUNT(D33:O33)","v":1}]
["Hunter Blue North","CZ","Kantorová",null,"DISQ",null,null,null,null,null,null,null,null,null,"DISQ",{"$f":"SUM(D34:O34)","v":0},null,{"$f":"COUNT(D34:O34)","v":0}]
["Knight of Darkness de Wallrock","CZ","Sofronová",null,null,null,null,null,null,"DISQ",null,null,null,null,null,{"$f":"SUM(D35:O35)","v":0},null,{"$f":"COUNT(D35:O35)","v":0}]
["Flubber Ready Go","CZ","Lacinová",null,null,null,null,null,null,null,null,null,null,null,"DISQ",{"$f":"SUM(D36:O36)","v":0},null,{"$f":"COUNT(D36:O36)","v":0}]
[]
["FENA"]
["Buggy Buggy Welcoming Dog","CZ","Metelková",null,null,null,null,9,null,9,9,8,11,12,8,{"$f":"SUM(D39:O39)","v":66},66,{"$f":"COUNT(D39:O39)","v":7}]
["Dare to Dream Fancy That ","CZ","Skoumal",6,null,null,11,null,null,null,7,null,9,10,null,{"$f":"SUM(D40:O40)","v":43},43,{"$f":"COUNT(D40:O40)","v":5}]
["Ayleen Bon Esprit","CZ","Kaplan",null,3,null,5,7,null,null,8,7,null,7,5,{"$f":"SUM(D41:O41)","v":42},42,{"$f":"COUNT(D41:O41)","v":7}]
["Wivien Vlapan","CZ","Svobodová",5,5,7,null,8,null,null,5,null,11,null,null,{"$f":"SUM(D42:O42)","v":41},{"$f":"+P42","v":41},{"$f":"COUNT(D42:O42)","v":6}]
["Elaiza Monelly Ready GO","CZ","Rajnochová",2,null,null,9,null,null,6,4,null,4,null,null,{"$f":"SUM(D43:O43)","v":25},25,{"$f":"COUNT(D43:O43)","v":5}]
["Dare to Shine Fancy That","CZ","Koťátková",null,null,null,10,null,null,null,null,null,7,3,7,{"$f":"SUM(D44:O44)","v":27},null,{"$f":"COUNT(D44:O44)","v":4}]
["Yazara Vlapan","CZ","Beňová",null,null,null,6,null,null,null,null,null,8,5,null,{"$f":"SUM(D45:O45)","v":19},null,{"$f":"COUNT(D45:O45)","v":3}]
["Flame of Freedom Loyal Gladiator","AT","Walk",null,null,null,null,null,7,null,null,11,null,null,null,{"$f":"SUM(D46:O46)","v":18},null,{"$f":"COUNT(D46:O46)","v":2}]
["Hayabusa Blue North","CZ","Lačňáková",null,null,5,null,5,4,null,null,null,null,null,3,{"$f":"SUM(D47:O47)","v":17},null,{"$f":"COUNT(D47:O47)","v":4}]
["Priscilla Bohemia Snap Dog","CZ","Zuvač",null,null,null,7,null,null,null,null,null,null,10,null,{"$f":"SUM(D48:O48)","v":17},null,{"$f":"COUNT(D48:O48)","v":2}]
["Alabastra´s Nemesis","CZ","Jerneková",null,null,null,4,null,null,7,null,null,null,6,null,{"$f":"SUM(D49:O49)","v":17},null,{"$f":"COUNT(D49:O49)","v":3}]
["Arteta Bleuy Grace Dog","CZ","Betka",null,null,null,1,null,null,8,null,null,null,8,null,{"$f":"SUM(D50:O50)","v":17},null,{"$f":"COUNT(D50:O50)","v":3}]
["Dulccinea Ready Go","CZ","Pernecká",null,null,null,8,null,null,null,6,null,null,2,null,{"$f":"SUM(D51:O51)","v":16},null,{"$f":"COUNT(D51:O51)","v":3}]
["Xenia Vlapan","CZ","Jersáková",null,4,null,null,null,null,null,null,null,null,11,null,{"$f":"SUM(D52:O52)","v":15},null,{"$f":"COUNT(D52:O52)","v":2}]
["Bura Orksanska von den Donauauen","AT","Walk",null,null,null,null,null,5,null,null,10,null,null,null,{"$f":"SUM(D53:O53)","v":15},null,{"$f":"COUNT(D53:O53)","v":2}]
["Peppy Lapeau vom Rauhen Meer","AT","Walk",null,null,null,null,null,6,null,null,9,null,null,null,{"$f":"SUM(D54:O54)","v":15},null,{"$f":"COUNT(D54:O54)","v":2}]
["Guapa Blue North","CZ","Lačňáková",null,null,2,null,6,3,null,null,2,null,null,null,{"$f":"SUM(D55:O55)","v":13},null,{"$f":"COUNT(D55:O55)","v":4}]
["In Vogue Inventum","CZ","Žyková",null,null,null,null,null,2,null,null,5,null,null,6,{"$f":"SUM(D56:O56)","v":13},null,{"$f":"COUNT(D56:O56)","v":3}]
["Daenerys z Podsmrčků","CZ","Broulíkovi",3,null,3,2,3,null,null,null,null,null,null,null,{"$f":"SUM(D57:O57)","v":11},null,{"$f":"COUNT(D57:O57)","v":4}]
["Evanessa Mae Ready Go","CZ","Stohanzlová",null,null,null,null,null,null,null,null,null,7,4,null,{"$f":"SUM(D58:O58)","v":11},null,{"$f":"COUNT(D58:O58)","v":2}]
["Antoanett Bon Esprit","CZ","Macková",4,null,null,null,null,null,5,null,null,null,null,null,{"$f":"SUM(D59:O59)","v":9},null,{"$f":"COUNT(D59:O59)","v":2}]
["Dandeliony Ready Go","CZ","Kupková",null,null,6,3,null,null,null,"DISM",null,null,null,null,{"$f":"SUM(D60:O60)","v":9},null,{"$f":"COUNT(D60:O60)","v":2}]
["Bonnie Camaro Arrows","CZ","Pařízková",null,null,null,null,null,null,null,null,null,null,null,9,{"$f":"SUM(D61:O61)","v":9},null,{"$f":"COUNT(D61:O61)","v":1}]
["Journey Globe Glass","CZ","Krahulíková",null,1,null,null,null,null,3,null,null,"MWDR",null,4,{"$f":"SUM(D62:O62)","v":8},null,{"$f":"COUNT(D62:O62)","v":3}]
["Calllisto Nice Bono Venandi","CZ","Martincová",null,null,null,null,null,null,4,3,null,null,null,null,{"$f":"SUM(D63:O63)","v":7},null,{"$f":"COUNT(D63:O63)","v":2}]
["Goldie Blue North","CZ","Bronec",null,null,4,null,2,null,null,null,null,null,null,null,{"$f":"SUM(D64:O64)","v":6},null,{"$f":"COUNT(D64:O64)","v":2}]
["Ulla Vlapan","CZ","Beňová",null,null,null,null,null,null,null,null,6,null,null,null,{"$f":"SUM(D65:O65)","v":6},null,{"$f":"COUNT(D65:O65)","v":1}]
["Chloe Esprit Blue North","SK","Schlosserová",null,null,null,null,4,null,null,null,null,null,null,2,{"$f":"SUM(D66:O66)","v":6},null,{"$f":"COUNT(D66:O66)","v":2}]
["Yosie Vlapan","CZ","Jerneková",null,null,null,null,null,null,null,null,null,5,1,null,{"$f":"SUM(D67:O67)","v":6},null,{"$f":"COUNT(D67:O67)","v":2}]
["Arya Welcoming Dog","CZ","Metelková",null,null,null,null,null,null,null,null,4,null,null,null,{"$f":"SUM(D68:O68)","v":4},null,{"$f":"COUNT(D68:O68)","v":1}]
["DANCE WITH THE DEVIL Sonic Workaholic","PL","Zajac",1,2,null,null,null,null,null,null,null,null,null,null,{"$f":"SUM(D69:O69)","v":3},null,{"$f":"COUNT(D69:O69)","v":2}]
["Dayda Lussy Ready Go","CZ","Rajnochová",null,null,null,null,null,null,null,null,3,null,null,null,{"$f":"SUM(D70:O70)","v":3},null,{"$f":"COUNT(D70:O70)","v":1}]
["Heurrecca Cresidee Rozárka","CZ","Žyková",null,null,null,null,null,1,null,null,1,null,null,1,{"$f":"SUM(D71:O71)","v":3},null,{"$f":"COUNT(D71:O71)","v":3}]
["Ace of Galaxy Fast Beat","CZ","Funková",null,null,null,null,null,null,null,null,null,3,null,null,{"$f":"SUM(D72:O72)","v":3},null,{"$f":"COUNT(D72:O72)","v":1}]
["Calliope Rara Canis","CZ","Kaniová",null,null,1,null,1,null,null,null,null,null,null,null,{"$f":"SUM(D73:O73)","v":2},null,{"$f":"COUNT(D73:O73)","v":2}]
["Xsara Brodwinek","PL","Potlanski",null,null,null,null,null,null,2,null,null,null,null,null,{"$f":"SUM(D74:O74)","v":2},null,{"$f":"COUNT(D74:O74)","v":1}]
["Alize Bleuy Grace Dog","CZ","Metelková",null,null,null,null,null,null,null,2,null,null,null,null,{"$f":"SUM(D75:O75)","v":2},null,{"$f":"COUNT(D75:O75)","v":1}]
["Anna Chloe Bon Esprit","CZ","Novotná",null,null,null,null,null,null,1,null,null,null,null,null,{"$f":"SUM(D76:O76)","v":1},null,{"$f":"COUNT(D76:O76)","v":1}]
["Endless Summer Fancy That","CZ","Doušová",null,null,null,null,null,null,null,null,null,"DISM",null,null,{"$f":"SUM(D77:O77)","v":0},null,{"$f":"COUNT(D77:O77)","v":0}]
[]
["SENIOR PES"]
["Excalibur Jitka-Miki","CZ","Šlechta Petr",null,1,3,2,null,1,3,null,1,2,null,3,{"$f":"SUM(D80:O80)","v":16},15,{"$f":"COUNT(D80:O80)","v":8}]
["Ayel Welcoming Dog","PL","Cogiel",null,null,null,null,null,null,4,null,2,null,null,null,{"$f":"SUM(D81:O81)","v":6},null,{"$f":"COUNT(D81:O81)","v":2}]
["Ayrton Welcoming dog","CZ","Vaněk ",null,null,2,null,null,null,2,null,null,null,null,null,{"$f":"SUM(D82:O82)","v":4},null,{"$f":"COUNT(D82:O82)","v":2}]
["Haristo Inventum","CZ","Skoupý",null,null,null,null,null,null,null,null,null,null,null,4,{"$f":"SUM(D83:O83)","v":4},null,{"$f":"COUNT(D83:O83)","v":1}]
["Overdose Bohemia Snap Dog","CZ","Netrefa",null,null,1,null,1,null,null,null,null,null,null,1,{"$f":"SUM(D84:O84)","v":3},null,{"$f":"COUNT(D84:O84)","v":3}]
["Rio Vlapan","CZ","Milerová",null,null,null,null,null,null,null,null,null,3,null,null,{"$f":"SUM(D85:O85)","v":3},null,{"$f":"COUNT(D85:O85)","v":1}]
["Cometty Flash Ready Go","CZ","Kostková",null,null,null,null,null,null,"DISQ",null,null,null,null,null,{"$f":"SUM(D86:O86)","v":0},null,{"$f":"COUNT(D86:O86)","v":0}]
["Chopper Sunny Funny","CZ",null,null,null,null,null,null,null,null,null,null,"DISM",null,null,{"$f":"SUM(D87:O87)","v":0},null,{"$f":"COUNT(D87:O87)","v":0}]
[null,null,null,null,null,null,null,null,null,null,null,null,null,null,null,{"$f":"SUM(D88:O88)","v":0},null,{"$f":"COUNT(D88:O88)","v":0}]
[]
["SENIOR FENA"]
["Catch Me If You Can Fancy That","CZ","Doušová",null,null,null,null,null,null,null,3,null,5,null,null,{"$f":"SUM(D91:O91)","v":8}," ",{"$f":"COUNT(D91:O91)","v":2}]
["Coraline Fancy That","CZ","Koťátková",null,null,null,3,null,null,4,"MWDR",null,null,null,null,{"$f":"SUM(D92:O92)","v":7}," ",{"$f":"COUNT(D92:O92)","v":2}]
["CON ELLY Ready Go","CZ","Konečná",null,null,null,null,null,null,null,2,null,4,null,null,{"$f":"SUM(D93:O93)","v":6}," ",{"$f":"COUNT(D93:O93)","v":2}]
["Arya Welcoming Dog","CZ","Metelková",null,null,null,null,null,null,3,null,null,null,null,null,{"$f":"SUM(D94:O94)","v":3}," ",{"$f":"COUNT(D94:O94)","v":1}]
["Orphee Bohemia Snap Dog","CZ","Pašková",null,null,null,null,null,null,2,null,null,null,null,null,{"$f":"SUM(D95:O95)","v":2}," ",{"$f":"COUNT(D95:O95)","v":1}]
["Goldie Blue North","CZ","Bronec",null,null,null,null,null,null,null,null,null,null,null,2,{"$f":"SUM(D96:O96)","v":2}," ",{"$f":"COUNT(D96:O96)","v":1}]
["Harmony Inventum","CZ","Tandlerová",null,null,null,1,null,null,null,null,null,null,null,null,{"$f":"SUM(D97:O97)","v":1}," ",{"$f":"COUNT(D97:O97)","v":1}]
["Audrey Welcoming Dog","CZ","Kovalská",null,null,null,null,null,null,1,null,null,null,null,null,{"$f":"SUM(D98:O98)","v":1}," ",{"$f":"COUNT(D98:O98)","v":1}]

{"sheet":"basenji","index":10,"n_rows":31,"n_cols":18,"rows_kept":31,"cut":false,"hidden":false,"merged":[[0,15,2,15],[0,16,2,16],[0,17,2,17]]}
[null,null,null,"23.3.","13.4.","1.5.","11.5.","30.6.","7.7.","14.7.","3.8.","18.8.","14.9./26.10.","5.10.","12.10.","součet","body započítávané do soutěže","počet závodů"]
["BASENJI",null,null,"Kolín","Lednice","Lednice","Kolín","Lednice","Lednice","Kolín","Kolín","Lednice","Kolín","Kolín","Lednice"]
["jméno psa","země","majitel",1,2,3,4,5,6,7,8,9,10,11,12]
["PES"]
["Garry Prince Of Mabanga","CZ","Mizera",1,null,1,4,1,4,7,4,null,1,null,3,{"$f":"SUM(D5:O5)","v":26},24,{"$f":"COUNT(D5:O5)","v":9}]
["On The Dark Side Bahaticca´s","CZ","Mizera",2,null,2,5,2,5,"DISQ","DISQ",null,null,null,5,{"$f":"SUM(D6:O6)","v":21},21,{"$f":"COUNT(D6:O6)","v":6}]
["Flow Anulinka","CZ","Frydrychová",3,null,3,"DISQ",3,null,null,null,null,3,null,6,{"$f":"SUM(D7:O7)","v":18},18,{"$f":"COUNT(D7:O7)","v":5}]
["Arthas At The Journey Man Inn","CZ","Košťálová",null,null,null,null,null,null,null,null,null,2,null,4,{"$f":"SUM(D8:O8)","v":6},null,{"$f":"COUNT(D8:O8)","v":2}]
["Ohti Lucky of Burudika","CZ","Drešerová",null,null,null,3,null,null,"DISQ",null,null,null,null,null,{"$f":"SUM(D9:O9)","v":3},null,{"$f":"COUNT(D9:O9)","v":1}]
["Intisara´s Hermes","CZ","Drešerová",null,null,null,2,null,null,"DISQ",null,null,null,null,null,{"$f":"SUM(D10:O10)","v":2},null,{"$f":"COUNT(D10:O10)","v":1}]
["Abnaxus At The Journey Man Inn","CZ","Andreevová",null,null,null,null,null,null,null,2,null,null,null,null,{"$f":"SUM(D11:O11)","v":2},null,{"$f":"COUNT(D11:O11)","v":1}]
["Jupoto Poto Asthenia","CZ","Lenfeldová",null,null,null,null,null,null,"DISQ",null,null,null,null,null,{"$f":"SUM(D12:O12)","v":0},null,{"$f":"COUNT(D12:O12)","v":0}]
["Azir Huriland Dog Breeding","CZ","Košťálová",null,null,null,null,null,null,null,null,null,null,null,"DISQ",{"$f":"SUM(D13:O13)","v":0},null,{"$f":"COUNT(D13:O13)","v":0}]
[null,null,null,null,null,null,null,null,null,null,null,null,null,null,null,{"$f":"SUM(D14:O14)","v":0},null,{"$f":"COUNT(D14:O14)","v":0}]
["FENA"]
["Aira Star My Beautiful Savage","CZ","Knápek",3,1,4,2,3,"DISQ","MWDR",5,2,null,null,null,{"$f":"SUM(D16:O16)","v":20},20,{"$f":"COUNT(D16:O16)","v":7}]
["Ghini Mabanga","CZ","Popelková",null,null,3,null,2,3,null,null,1,null,null,2,{"$f":"SUM(D17:O17)","v":11},11,{"$f":"COUNT(D17:O17)","v":5}]
["Holly Krumloš","CZ","Müllerová",null,null,null,3,4,"DISQ",null,null,null,null,null,null,{"$f":"SUM(D18:O18)","v":7},null,{"$f":"COUNT(D18:O18)","v":2}]
["Visit Card Adebanke´s","CZ","Čechurová",2,null,null,1,null,null,null,3,null,null,null,null,{"$f":"SUM(D19:O19)","v":6},null,{"$f":"COUNT(D19:O19)","v":3}]
["Asanthe Moyo Wa Konga","CZ","Šafránková",null,null,"DISQ",null,null,null,null,null,null,null,null,null,{"$f":"SUM(D20:O20)","v":0},null,{"$f":"COUNT(D20:O20)","v":0}]
["Erza Puzzle of Manominoko","CZ","Albrecht",null,null,"DISM",null,"DISM",null,"DISM",null,null,null,null,null,{"$f":"SUM(D21:O21)","v":0},null,{"$f":"COUNT(D21:O21)","v":0}]
[null,null,null,null,null,null,null,null,null,null,null,null,null,null,null,{"$f":"SUM(D22:O22)","v":0},null,{"$f":"COUNT(D22:O22)","v":0}]
[null,null,null,null,null,null,null,null,null,null,null,null,null,null,null,{"$f":"SUM(D23:O23)","v":0},null,{"$f":"COUNT(D23:O23)","v":0}]
[]
["SENIOR PES"]
[null,null,null,null,null,null,null,null,null,null,null,null,null,null,null,{"$f":"SUM(D26:O26)","v":0}," ",{"$f":"COUNT(D26:O26)","v":0}]
[null,null,null,null,null,null,null,null,null,null,null,null,null,null,null,{"$f":"SUM(D27:O27)","v":0}," ",{"$f":"COUNT(D27:O27)","v":0}]
[]
["SENIOR FENA"]
["Hakika Sewu Asthenia","CZ","Čechurová",1,null,null,1,null,null,1,1,null,1,1,null,{"$f":"SUM(D30:O30)","v":6},6,{"$f":"COUNT(D30:O30)","v":6}]
["Dibi Mabanga","CZ","Popelková",null,1,1,null,1,1,null,null,1,null,null,1,{"$f":"SUM(D31:O31)","v":6},6,{"$f":"COUNT(D31:O31)","v":6}]

{"sheet":"Faraonský pes","index":11,"n_rows":27,"n_cols":18,"rows_kept":27,"cut":false,"hidden":false,"merged":[[0,15,2,15],[0,16,2,16],[0,17,2,17]]}
[null,null,null,"23.3.","13.4.","1.5.","11.5.","30.6.","7.7.","14.7.","3.8.","18.8.","14.9./26.10.","5.10.","12.10.","součet","body započítávané do soutěže","počet závodů"]
["FARAÓNSKÝ PES",null,null,"Kolín","Lednice","Lednice","Kolín","Lednice","Lednice","Kolín","Kolín","Lednice","Kolín","Kolín","Lednice"]
["jméno psa","země","majitel",1,2,3,4,5,6,7,8,9,10,11,12]
["FENA"]
["Alexandra Ginger Dwarf","CZ","Fohlová",3,3,4,4,4,3,null,null,null,null,null,3,{"$f":"SUM(D5:O5)","v":24},24,{"$f":"COUNT(D5:O5)","v":7}]
["Lust I The Dust Bazinga","CZ","Janouchová",null,null,null,null,null,null,null,2,null,3,null,2,{"$f":"SUM(D6:O6)","v":7},null,{"$f":"COUNT(D6:O6)","v":3}]
["Burning Sky Florida's Diamonds","CZ","Konečná",null,null,null,null,null,null,1,null,null,2,null,1,{"$f":"SUM(D7:O7)","v":4},null,{"$f":"COUNT(D7:O7)","v":3}]
["Just Coffee Akasha","CZ","Coufalová",null,null,null,1,null,null,null,null,null,null,null,null,{"$f":"SUM(D8:O8)","v":1},null,{"$f":"COUNT(D8:O8)","v":1}]
["Beauty Bonza Florina´s Diamond","CZ","Nejedlá",null,null,null,null,null,null,null,null,null,1,null,null,{"$f":"SUM(D9:O9)","v":1},null,{"$f":"COUNT(D9:O9)","v":1}]
[]
["PES"]
["Amadeus Ginger Dwarf","CZ","Fohlová",4,2,3,3,3,2,null,null,null,null,null,2,{"$f":"SUM(D12:O12)","v":19},19,{"$f":"COUNT(D12:O12)","v":7}]
["Osiris Next Level Superman XO","CZ","Halenková",5,1,2,null,2,1,2,1,null,null,null,3,{"$f":"SUM(D13:O13)","v":17},16,{"$f":"COUNT(D13:O13)","v":8}]
["Archimedes Ginger Dwarf","CZ","Szczerkowska",2,null,1,2,1,null,null,null,null,null,null,1,7,7,5]
["Izzy Putimská brána ","CZ","Nevěčná","DISM",null,null,null,null,null,null,null,null,null,null,null,{"$f":"SUM(D15:O15)","v":0}," ",{"$f":"COUNT(D15:O15)","v":0}]
[]
["FENA SENIOR"]
["Cantara Anat Wai-Wad","CZ","Fohlová",1,1,1,2,1,1,null,null,null,null,null,4,{"$f":"SUM(D18:O18)","v":11},11,{"$f":"COUNT(D18:O18)","v":7}]
["Caracala Aiás Wai-Wad","CZ","Košnarová",null,null,null,null,null,null,null,null,null,3,null,2,{"$f":"SUM(D19:O19)","v":5},null,{"$f":"COUNT(D19:O19)","v":2}]
["Anchsenamon Queen Florina´s Diamond","CZ","Nguyenová",null,null,null,1,null,null,1,null,null,null,null,null,{"$f":"SUM(D20:O20)","v":2},null,{"$f":"COUNT(D20:O20)","v":2}]
["Ceridwen Enki Wai-Wad","CZ","Košnarová",null,null,null,null,null,null,null,null,null,"DISM",null,1,{"$f":"SUM(D21:O21)","v":1},null,{"$f":"COUNT(D21:O21)","v":1}]
["Calico Ninmah Wai-Wad","CZ","Kutiová",null,null,null,null,null,null,null,null,null,"DISQ",null,null,{"$f":"SUM(D22:O22)","v":0},null,{"$f":"COUNT(D22:O22)","v":0}]
[]
["PES SENIOR"]
["Izzy Putimská brána ","CZ","Nevěčná",null,null,2,3,null,null,null,null,null,null,null,5,{"$f":"SUM(D25:O25)","v":10}," ",{"$f":"COUNT(D25:O25)","v":3}]
["Litlar´s Niju Zhar Plamya","CZ","Halenková",null,null,null,null,null,null,null,null,null,null,null,3,{"$f":"SUM(D26:O26)","v":3}," ",{"$f":"COUNT(D26:O26)","v":1}]
[null,null,null,null,null,null,null,null,null,null,null,null,null,null,null,{"$f":"SUM(D27:O27)","v":0}," ",{"$f":"COUNT(D27:O27)","v":0}]

{"sheet":"Ibizský podenco","index":12,"n_rows":15,"n_cols":18,"rows_kept":15,"cut":false,"hidden":false,"merged":[[0,15,2,15],[0,16,2,16],[0,17,2,17]]}
[null,null,null,"23.3.","13.4.","1.5.","11.5.","30.6.","7.7.","14.7.","3.8.","18.8.","14.9./26.10.","5.10.","12.10.","součet","body započítávané do soutěže","počet závodů"]
["IBIZSKÝ PODENCO",null,null,"Kolín","Lednice","Lednice","Kolín","Lednice","Lednice","Kolín","Kolín","Lednice","Kolín","Kolín","Lednice"]
["jméno psa","země","majitel",1,2,3,4,5,6,7,8,9,10,11,12]
["PES"]
["Fenix de Entersaltos","CZ","Halenková",null,null,null,null,2,3,4,3,null,null,null,3,{"$f":"SUM(D5:O5)","v":15},15,{"$f":"COUNT(D5:O5)","v":5}]
["Gallardo de Entersaltos","CZ","Halenková",null,null,null,null,3,2,3,2,null,null,null,2,{"$f":"SUM(D6:O6)","v":12},12,{"$f":"COUNT(D6:O6)","v":5}]
["Eryx de Entresaltos","CZ","Halenková",2,1,1,null,1,null,"MWDR",null,null,null,null,1,{"$f":"SUM(D7:O7)","v":6},6,{"$f":"COUNT(D7:O7)","v":5}]
["Primal Hound´s Aalto Solace of Kuraokami","CZ","Halenková",null,null,null,null,4,null,null,null,null,null,null,4,{"$f":"SUM(D8:O8)","v":8},null,{"$f":"COUNT(D8:O8)","v":2}]
["Cazaion Esperado","CZ","Halenková",null,null,null,null,null,"DISM",null,null,null,null,null,null,0,null,0]
["FENA"]
["Daernerys Diabla, ex domo If´ Oras","CZ","Kutiová",1,null,null,1,null,null,"DISM","DISM",null,null,null,null,{"$f":"SUM(D11:O11)","v":2},null,{"$f":"COUNT(D11:O11)","v":2}]
[]
[]
["SENIOR PES"]
["Cazaion Esperado","CZ","Halenková",null,null,null,null,null,null,null,1,null,null,null,1,{"$f":"SUM(D15:O15)","v":2},null,{"$f":"COUNT(D15:O15)","v":2}]

{"sheet":"Kanárský podenco","index":13,"n_rows":12,"n_cols":18,"rows_kept":12,"cut":false,"hidden":false,"merged":[[0,15,2,15],[0,16,2,16],[0,17,2,17]]}
[null,null,null,"23.3.","13.4.","1.5.","11.5.","30.6.","7.7.","14.7.","3.8.","18.8.","14.9.","5.10.","12.10.","součet","body započítávané do soutěže","počet závodů"]
["KANÁRSKÝ PODENCO",null,null,"Kolín","Lednice","Lednice","Kolín","Lednice","Lednice","Kolín","Kolín","Lednice","Kolín","Kolín","Lednice"]
["jméno psa","země","majitel",1,2,3,4,5,6,7,8,9,10,11,12]
["PES"]
[null,null,null,null,null,null,null,null,null,null,null,null,null,null,null,{"$f":"SUM(D5:O5)","v":0}," ",{"$f":"COUNT(D5:O5)","v":0}]
[null,null,null,null,null,null,null,null,null,null,null,null,null,null,null,{"$f":"SUM(D6:O6)","v":0}," ",{"$f":"COUNT(D6:O6)","v":0}]
[null,null,null,null,null,null,null,null,null,null,null,null,null,null,null,{"$f":"SUM(D7:O7)","v":0}," ",{"$f":"COUNT(D7:O7)","v":0}]
[]
["FENA"]
[null,null,null,null,null,null,null,null,null,null,null,null,null,null,null,{"$f":"SUM(D10:O10)","v":0}," ",{"$f":"COUNT(D10:O10)","v":0}]
[null,null,null,null,null,null,null,null,null,null,null,null,null,null,null,{"$f":"SUM(D11:O11)","v":0}," ",{"$f":"COUNT(D11:O11)","v":0}]
[null,null,null,null,null,null,null,null,null,null,null,null,null,null,null,{"$f":"SUM(D12:O12)","v":0}," ",{"$f":"COUNT(D12:O12)","v":0}]

{"sheet":"sicilský chrt","index":14,"n_rows":23,"n_cols":18,"rows_kept":23,"cut":false,"hidden":false,"merged":[[0,15,2,15],[0,16,2,16],[0,17,2,17]]}
[null,null,null,"23.3.","13.4.","1.5.","11.5.","30.6.","7.7.","14.7.","3.8.","18.8.","14.9./26.10.","5.10.","12.10.","součet","body započítávané do soutěže","počet závodů"]
["SICILSKÝ CHRT",null,null,"Kolín","Lednice","Lednice","Kolín","Lednice","Lednice","Kolín","Kolín","Lednice","Kolín","Kolín","Lednice"]
["jméno psa","země","majitel",1,2,3,4,5,6,7,8,9,10,11,12]
["PES"]
["Orion Silvento","CZ","Koláčková",null,null,null,2,null,null,null,null,null,null,null,null,{"$f":"SUM(D5:O5)","v":2},null,{"$f":"COUNT(D5:O5)","v":1}]
[null,null,null,null,null,null,null,null,null,null,null,null,null,null,null,{"$f":"SUM(D6:O6)","v":0},null,{"$f":"COUNT(D6:O6)","v":0}]
[null,null,null,null,null,null,null,null,null,null,null,null,null,null,null,{"$f":"SUM(D7:O7)","v":0},null,{"$f":"COUNT(D7:O7)","v":0}]
[]
["FENA"]
["Camara Rheia Wai Wad","CZ","Kutiová","DISM",null,null,"DISM",null,null,null,null,null,null,null,null,{"$f":"SUM(D10:O10)","v":0},null,{"$f":"COUNT(D10:O10)","v":0}]
[null,null,null,null,null,null,null,null,null,null,null,null,null,null,null,{"$f":"SUM(D11:O11)","v":0},null,{"$f":"COUNT(D11:O11)","v":0}]
[null,null,null,null,null,null,null,null,null,null,null,null,null,null,null,{"$f":"SUM(D12:O12)","v":0}," ",{"$f":"COUNT(D12:O12)","v":0}]
[null,null,null,null,null,null,null,null,null,null,null,null,null,null,null,{"$f":"SUM(D13:O13)","v":0}," ",{"$f":"COUNT(D13:O13)","v":0}]
[]
["SENIOR PES"]
["Belenus Benu Wai Wad","CZ","Kutiová",1,null,null,1,null,null,1,"DISQ",null,1,null,null,{"$f":"SUM(D16:O16)","v":4}," ",{"$f":"COUNT(D16:O16)","v":4}]
[null,null,null,null,null,null,null,null,null,null,null,null,null,null,null,{"$f":"SUM(D17:O17)","v":0}," ",{"$f":"COUNT(D17:O17)","v":0}]
[null,null,null,null,null,null,null,null,null,null,null,null,null,null,null,{"$f":"SUM(D18:O18)","v":0}," ",{"$f":"COUNT(D18:O18)","v":0}]
[]
["SENIOR FENA"]
["Bía Balor Wai-Wad","CZ","Kutiová",2,null,null,2,null,null,2,2,null,2,null,null,{"$f":"SUM(D21:O21)","v":10},10,{"$f":"COUNT(D21:O21)","v":5}]
["Buri Birdu Wai-Wad","CZ","Janouchová",null,null,null,null,null,null,null,null,null,3,null,1,{"$f":"SUM(D22:O22)","v":4}," ",{"$f":"COUNT(D22:O22)","v":2}]
[null,null,null,null,null,null,null,null,null,null,null,null,null,null,null,{"$f":"SUM(D23:O23)","v":0}," ",{"$f":"COUNT(D23:O23)","v":0}]

{"sheet":"dlouhosrstý vipet","index":15,"n_rows":35,"n_cols":18,"rows_kept":35,"cut":false,"hidden":false,"merged":[[0,15,2,15],[0,16,2,16],[0,17,2,17]]}
[null,null,null,"23.3.","13.4.","1.5.","11.5.","30.6.","7.7.","14.7.","3.8.","18.8.","14.9./26.10.","5.10.","12.10.","součet","body započítávané do soutěže","počet závodů"]
["DLOUHOSRSTÝ VIPET",null,null,"Kolín","Lednice","Lednice","Kolín","Lednice","Lednice","Kolín","Kolín","Lednice","Kolín","Kolín","Lednice"]
["jméno psa","země","majitel",1,2,3,4,5,6,7,8,9,10,11,12]
["PES"]
["Cypress Absolute Original","CZ","Skřivánková",3,null,null,5,null,3,3,3,null,"MWDR",3,null,{"$f":"SUM(D5:O5)","v":20},20,{"$f":"COUNT(D5:O5)","v":6}]
["Quartz Beami Sahrak","CZ","Skřivánková",1,null,null,3,null,1,1,1,null,3,1,null,11,{"$f":"+P6","v":11},7]
["Gump Verona Sunrise","CZ","Horváth",2,null,null,1,null,null,2,2,null,4,null,null,11,11,5]
["Leikur von Krefting","CZ","Reisová",null,null,null,null,1,4,null,null,2,null,null,2,9,null,4]
["Talisman vom Schwarzen Schwan","CZ","Reisová",null,null,null,null,null,null,null,null,1,null,null,1,2,null,2]
[null,null,null,null,null,null,null,null,null,null,null,null,null,null,null,0,null,0]
[null,null,null,null,null,null,null,null,null,null,null,null,null,null,null,0,null,0]
[]
["FENA"]
["Bathlea Star of Andromeda Terra","CZ","Bazalová","DISM",null,null,4,null,2,null,null,null,null,null,null,{"$f":"SUM(D14:O14)","v":6},null,{"$f":"COUNT(D14:O14)","v":2}]
["Gloria Verona Sunrise","CZ","Koucký",null,null,null,2,null,null,null,null,null,2,2,null,{"$f":"SUM(D15:O15)","v":6},null,{"$f":"COUNT(D15:O15)","v":3}]
["Honey Verona Sunrise","CZ","Koucká",null,null,null,null,null,null,null,null,null,5,null,null,{"$f":"SUM(D16:O16)","v":5},null,{"$f":"COUNT(D16:O16)","v":1}]
["Queen Beatrix Beami Sahrak, Beami Sahrak","CZ","Dudová",4,null,null,null,null,null,null,null,null,null,null,null,{"$f":"SUM(D17:O17)","v":4},null,{"$f":"COUNT(D17:O17)","v":1}]
["Bella Star of Andromeda Terra","CZ","Uhrová",3,null,null,null,null,null,null,null,null,null,null,null,{"$f":"SUM(D18:O18)","v":3},null,{"$f":"COUNT(D18:O18)","v":1}]
["Eclipse Silken Magic Andromeda Terra","SK","Simon","DISM",null,null,null,null,null,null,null,null,null,null,null,{"$f":"SUM(D19:O19)","v":0},null,{"$f":"COUNT(D19:O19)","v":0}]
[null,null,null,null,null,null,null,null,null,null,null,null,null,null,null,{"$f":"SUM(D20:O20)","v":0},null,{"$f":"COUNT(D20:O20)","v":0}]
[null,null,null,null,null,null,null,null,null,null,null,null,null,null,null,{"$f":"SUM(D21:O21)","v":0},null,{"$f":"COUNT(D21:O21)","v":0}]
[null,null,null,null,null,null,null,null,null,null,null,null,null,null,null,{"$f":"SUM(D22:O22)","v":0},null,{"$f":"COUNT(D22:O22)","v":0}]
[null,null,null,null,null,null,null,null,null,null,null,null,null,null,null,{"$f":"SUM(D23:O23)","v":0},null,{"$f":"COUNT(D23:O23)","v":0}]
[null,null,null,null,null,null,null,null,null,null,null,null,null,null,null,{"$f":"SUM(D24:O24)","v":0},null,{"$f":"COUNT(D24:O24)","v":0}]
[null,null,null,null,null,null,null,null,null,null,null,null,null,null,null,{"$f":"SUM(D25:O25)","v":0},null,{"$f":"COUNT(D25:O25)","v":0}]
[]
["SENIOR PES"]
["Falco Verona Sunrise","CZ","Horváth",1,null,null,1,null,null,1,1,null,1,1,null,{"$f":"SUM(D28:O28)","v":6},6,{"$f":"COUNT(D28:O28)","v":6}]
[null,null,null,null,null,null,null,null,null,null,null,null,null,null,null,{"$f":"SUM(D29:O29)","v":0}," ",{"$f":"COUNT(D29:O29)","v":0}]
[]
["SENIOR FENA"]
["Afalda Princess of Andromeda","CZ","Uhrová",null,null,null,2,null,1,2,2,null,2,2,null,{"$f":"SUM(D32:O32)","v":11},11,{"$f":"COUNT(D32:O32)","v":6}]
[null,null,null,null,null,null,null,null,null,null,null,null,null,null,null,{"$f":"SUM(D33:O33)","v":0}," ",{"$f":"COUNT(D33:O33)","v":0}]
[null,null,null,null,null,null,null,null,null,null,null,null,null,null,null,{"$f":"SUM(D34:O34)","v":0}," ",{"$f":"COUNT(D34:O34)","v":0}]
[null,null,null,null,null,null,null,null,null,null,null,null,null,null,null,{"$f":"SUM(D35:O35)","v":0}," ",{"$f":"COUNT(D35:O35)","v":0}]

{"sheet":"Deerhound","index":16,"n_rows":15,"n_cols":18,"rows_kept":15,"cut":false,"hidden":false,"merged":[[0,15,2,15],[0,16,2,16],[0,17,2,17]]}
[null,null,null,"23.3.","13.4.","1.5.","11.5.","30.6.","7.7.","14.7.","3.8.","18.8.","14.9./26.10.","5.10.","12.10.","součet","body započítávané do soutěže","počet závodů"]
["DEERHOUND",null,null,"Kolín","Lednice","Lednice","Kolín","Lednice","Lednice","Kolín","Kolín","Lednice","Kolín","Kolín","Lednice"]
["jméno psa","země","majitel",1,2,3,4,5,6,7,8,9,10,11,12]
["PES"]
[null,null,null,null,null,null,null,null,null,null,null,null,null,null,null,{"$f":"SUM(D5:O5)","v":0}," ",{"$f":"COUNT(D5:O5)","v":0}]
[null,null,null,null,null,null,null,null,null,null,null,null,null,null,null,{"$f":"SUM(D6:O6)","v":0}," ",{"$f":"COUNT(D6:O6)","v":0}]
[null,null,null,null,null,null,null,null,null,null,null,null,null,null,null,{"$f":"SUM(D7:O7)","v":0}," ",{"$f":"COUNT(D7:O7)","v":0}]
[null,null,null,null,null,null,null,null,null,null,null,null,null,null,null,{"$f":"SUM(D8:O8)","v":0}," ",{"$f":"COUNT(D8:O8)","v":0}]
[null,null,null,null,null,null,null,null,null,null,null,null,null,null,null,{"$f":"SUM(D9:O9)","v":0}," ",{"$f":"COUNT(D9:O9)","v":0}]
[]
["FENA"]
["Ailis Under Sharp Hill","CZ","Jahelková",null,null,null,1,null,null,3,null,null,2,null,null,{"$f":"SUM(D12:O12)","v":6}," ",{"$f":"COUNT(D12:O12)","v":3}]
["Electra Under Sharp Hill","CZ","Jahelková",null,null,null,null,null,null,null,null,null,3,null,null,{"$f":"SUM(D13:O13)","v":3}," ",{"$f":"COUNT(D13:O13)","v":1}]
["Aisha Under Sharp Hill","CZ","Jahelková",null,null,null,2,null,null,"DISM",null,null,"DISM",null,null,{"$f":"SUM(D14:O14)","v":2}," ",{"$f":"COUNT(D14:O14)","v":1}]
["CandyCrush Under Sharp Hill","CZ","Jahelková",null,null,null,null,null,null,2,null,null,null,null,null,{"$f":"SUM(D15:O15)","v":2}," ",{"$f":"COUNT(D15:O15)","v":1}]

{"sheet":"Irský vlkodav","index":17,"n_rows":14,"n_cols":18,"rows_kept":14,"cut":false,"hidden":false,"merged":[[0,15,2,15],[0,16,2,16],[0,17,2,17]]}
[null,null,null,"23.3.","13.4.","1.5.","11.5.","30.6.","7.7.","14.7.","3.8.","18.8.","14.9.","5.10.","12.10.","součet","body započítávané do soutěže","počet závodů"]
["IRSKÝ VLKODAV",null,null,"Kolín","Lednice","Lednice","Kolín","Lednice","Lednice","Kolín","Kolín","Lednice","Kolín","Kolín","Lednice"]
["jméno psa","země","majitel",1,2,3,4,5,6,7,8,9,10,11,12]
["PES"]
[null,null,null,null,null,null,null,null,null,null,null,null,null,null,null,{"$f":"SUM(D5:O5)","v":0}," ",{"$f":"COUNT(D5:O5)","v":0}]
[null,null,null,null,null,null,null,null,null,null,null,null,null,null,null,{"$f":"SUM(D6:O6)","v":0}," ",{"$f":"COUNT(D6:O6)","v":0}]
[null,null,null,null,null,null,null,null,null,null,null,null,null,null,null,{"$f":"SUM(D7:O7)","v":0}," ",{"$f":"COUNT(D7:O7)","v":0}]
[null,null,null,null,null,null,null,null,null,null,null,null,null,null,null,{"$f":"SUM(D8:O8)","v":0}," ",{"$f":"COUNT(D8:O8)","v":0}]
[]
["FENA"]
[null,null,null,null,null,null,null,null,null,null,null,null,null,null,null,{"$f":"SUM(D11:O11)","v":0}," ",{"$f":"COUNT(D11:O11)","v":0}]
[null,null,null,null,null,null,null,null,null,null,null,null,null,null,null,{"$f":"SUM(D12:O12)","v":0}," ",{"$f":"COUNT(D12:O12)","v":0}]
[null,null,null,null,null,null,null,null,null,null,null,null,null,null,null,{"$f":"SUM(D13:O13)","v":0}," ",{"$f":"COUNT(D13:O13)","v":0}]
[null,null,null,null,null,null,null,null,null,null,null,null,null,null,null,{"$f":"SUM(D14:O14)","v":0}," ",{"$f":"COUNT(D14:O14)","v":0}]

{"sheet":"Polský chrt","index":18,"n_rows":15,"n_cols":18,"rows_kept":15,"cut":false,"hidden":false,"merged":[[0,15,2,15],[0,16,2,16],[0,17,2,17]]}
[null,null,null,"23.3.","13.4.","1.5.","11.5.","30.6.","7.7.","14.7.","3.8.","18.8.","14.9.","5.10.","12.10.","součet","body započítávané do soutěže","počet závodů"]
["POLSKÝ CHRT",null,null,"Kolín","Lednice","Lednice","Kolín","Lednice","Lednice","Kolín","Kolín","Lednice","Kolín","Kolín","Lednice"]
["jméno psa","země","majitel",1,2,3,4,5,6,7,8,9,10,11,12]
["PES"]
[null,null,null,null,null,null,null,null,null,null,null,null,null,null,null,{"$f":"SUM(D5:O5)","v":0}," ",{"$f":"COUNT(D5:O5)","v":0}]
[null,null,null,null,null,null,null,null,null,null,null,null,null,null,null,{"$f":"SUM(D6:O6)","v":0}," ",{"$f":"COUNT(D6:O6)","v":0}]
[null,null,null,null,null,null,null,null,null,null,null,null,null,null,null,{"$f":"SUM(D7:O7)","v":0}," ",{"$f":"COUNT(D7:O7)","v":0}]
[null,null,null,null,null,null,null,null,null,null,null,null,null,null,null,{"$f":"SUM(D8:O8)","v":0}," ",{"$f":"COUNT(D8:O8)","v":0}]
[null,null,null,null,null,null,null,null,null,null,null,null,null,null,null,{"$f":"SUM(D9:O9)","v":0}," ",{"$f":"COUNT(D9:O9)","v":0}]
[]
["FENA"]
[null,null,null,null,null,null,null,null,null,null,null,null,null,null,null,{"$f":"SUM(D12:O12)","v":0}," ",{"$f":"COUNT(D12:O12)","v":0}]
[null,null,null,null,null,null,null,null,null,null,null,null,null,null,null,{"$f":"SUM(D13:O13)","v":0}," ",{"$f":"COUNT(D13:O13)","v":0}]
[null,null,null,null,null,null,null,null,null,null,null,null,null,null,null,{"$f":"SUM(D14:O14)","v":0}," ",{"$f":"COUNT(D14:O14)","v":0}]
[null,null,null,null,null,null,null,null,null,null,null,null,null,null,null,{"$f":"SUM(D15:O15)","v":0}," ",{"$f":"COUNT(D15:O15)","v":0}]

{"sheet":"Maďarský chrt","index":19,"n_rows":16,"n_cols":18,"rows_kept":16,"cut":false,"hidden":false,"merged":[[0,15,2,15],[0,16,2,16],[0,17,2,17]]}
[null,null,null,"23.3.","13.4.","1.5.","11.5.","30.6.","7.7.","14.7.","3.8.","18.8.","14.9.","5.10.","12.10.","součet","body započítávané do soutěže","počet závodů"]
["MAĎARSKÝ CHRT",null,null,"Kolín","Lednice","Lednice","Kolín","Lednice","Lednice","Kolín","Kolín","Lednice","Kolín","Kolín","Lednice"]
["jméno psa","země","majitel",1,2,3,4,5,6,7,8,9,10,11,12]
["PES"]
[null,null,null,null,null,null,null,null,null,null,null,null,null,null,null,{"$f":"SUM(D5:O5)","v":0}," ",{"$f":"COUNT(D5:O5)","v":0}]
[null,null,null,null,null,null,null,null,null,null,null,null,null,null,null,{"$f":"SUM(D6:O6)","v":0}," ",{"$f":"COUNT(D6:O6)","v":0}]
[null,null,null,null,null,null,null,null,null,null,null,null,null,null,null,{"$f":"SUM(D7:O7)","v":0}," ",{"$f":"COUNT(D7:O7)","v":0}]
[null,null,null,null,null,null,null,null,null,null,null,null,null,null,null,{"$f":"SUM(D8:O8)","v":0}," ",{"$f":"COUNT(D8:O8)","v":0}]
[null,null,null,null,null,null,null,null,null,null,null,null,null,null,null,{"$f":"SUM(D9:O9)","v":0}," ",{"$f":"COUNT(D9:O9)","v":0}]
[]
["FENA"]
[null,null,null,null,null,null,null,null,null,null,null,null,null,null,null,{"$f":"SUM(D12:O12)","v":0}," ",{"$f":"COUNT(D12:O12)","v":0}]
[null,null,null,null,null,null,null,null,null,null,null,null,null,null,null,{"$f":"SUM(D13:O13)","v":0}," ",{"$f":"COUNT(D13:O13)","v":0}]
[null,null,null,null,null,null,null,null,null,null,null,null,null,null,null,{"$f":"SUM(D14:O14)","v":0}," ",{"$f":"COUNT(D14:O14)","v":0}]
[null,null,null,null,null,null,null,null,null,null,null,null,null,null,null,{"$f":"SUM(D15:O15)","v":0}," ",{"$f":"COUNT(D15:O15)","v":0}]
[null,null,null,null,null,null,null,null,null,null,null,null,null,null,null,{"$f":"SUM(D16:O16)","v":0}," ",{"$f":"COUNT(D16:O16)","v":0}]